[Event "23rd ETCC Women 2021"]
[Site "Catez"]
[Date "2021.11.15"]
[Round "4.55"]
[White "Kocyigit, Buse Naz"]
[Black "Johannsdottir, Johanna Bjorg"]
[Result "0-1"]
[ECO "B06"]
[WhiteElo "2034"]
[BlackElo "1952"]
[Annotator "NA"]
[PlyCount "102"]
[EventDate "2021.11.08"]
[EventType "team-tourn"]
[EventCountry "SLO"]
[SourceTitle "playchess.com"]
[Source "ChessBase"]
[SourceQuality "1"]
[WhiteTeam "Turkey"]
[BlackTeam "Iceland"]
[WhiteTeamCountry "TUR"]
[BlackTeamCountry "ISL"]
[TimeControl "40/5400+30:1800+30"]

1. Nf3 {[%emt 0:00:03]} g6 {[%emt 0:00:08]} 2. d4 {[%emt 0:00:09]} Bg7 {
[%emt 0:00:06]} 3. e4 {[%emt 0:00:07]} d6 {[%emt 0:00:07]} 4. Nc3 {[%emt 0:00:
17]} a6 {[%emt 0:00:05]} 5. Be3 {[%emt 0:00:35]} b5 {[%emt 0:00:44]} 6. Bd3 {
[%emt 0:03:13]} Bb7 {[%emt 0:00:31]} 7. a4 {[%emt 0:01:59]} b4 {[%emt 0:00:48]}
8. Ne2 {[%emt 0:00:04]} Nd7 {[%emt 0:00:22]} 9. Qd2 {[%emt 0:01:01]} c5 {
[%emt 0:00:36]} 10. c3 {[%emt 0:00:19]} a5 {[%emt 0:04:17]} 11. O-O {[%emt 0:
05:26]} Rc8 {[%emt 0:01:33]} 12. Rae1 {[%emt 0:22:35]} c4 {[%emt 0:08:58]} 13.
Bb1 {[%emt 0:00:45]} b3 {[%emt 0:00:33]} 14. Ng3 {[%emt 0:09:24]} h6 {[%emt 0:
04:24]} 15. h4 {[%emt 0:08:39]} e6 {[%emt 0:07:46]} 16. h5 {[%emt 0:01:34]} g5
{[%emt 0:00:31]} 17. d5 {[%emt 0:02:11]} e5 {[%emt 0:04:56]} 18. Nf5 {[%emt 0:
00:27]} Bf8 {[%emt 0:00:04]} 19. Qe2 {[%emt 0:06:47]} Qc7 {[%emt 0:02:35]} 20.
Nd2 {[%emt 0:04:21]} Ngf6 {[%emt 0:02:58]} 21. g3 {[%emt 0:03:40]} Rg8 {
[%emt 0:01:19]} 22. Kh1 {[%emt 0:02:02]} g4 {[%emt 0:07:26]} 23. Bxh6 {[%emt 0:
07:50]} Bxh6 {[%emt 0:07:07]} 24. Nxh6 {[%emt 0:00:02]} Rg5 {[%emt 0:00:34]}
25. Nf5 {[%emt 0:01:20]} Nxh5 {[%emt 0:00:58]} 26. Qxc4 {[%emt 0:05:45]} Nc5 {
[%emt 0:08:36]} 27. Qe2 {[%emt 0:06:07]} Ba6 {[%emt 0:02:00]} 28. c4 {[%emt 0:
03:25]} Nxa4 {[%emt 0:02:41]} 29. Qe3 {[%emt 0:01:03]} f6 {[%emt 0:01:27]} 30.
f4 {[%emt 0:01:01]} gxf3 {[%emt 0:03:02]} 31. Rxf3 {[%emt 0:02:07]} Rd8 {
[%emt 0:07:24]} 32. Re2 {[%emt 0:00:55]} Nxb2 {[%emt 0:03:28]} 33. Qxb3 {
[%emt 0:00:16]} Rb8 {[%emt 0:02:55]} 34. Qc2 {[%emt 0:00:22]} a4 {[%emt 0:04:
31]} 35. Rh2 {[%emt 0:00:30]} Qc5 {[%emt 0:02:01]} 36. Qc1 {[%emt 0:01:21]} Kf7
{[%emt 0:01:51]} 37. Ba2 {[%emt 0:00:45]} Bc8 {[%emt 0:02:35]} 38. Nf1 {
[%emt 0:00:26]} Bxf5 {[%emt 0:00:58]} 39. exf5 {[%emt 0:00:30]} Qd4 {[%emt 0:
02:16]} 40. Rd2 {[%emt 0:00:34]} Qg4 {[%emt 0:04:16]} 41. Qc3 {[%emt 0:30:29]}
e4 {[%emt 0:07:12]} 42. Re3 {[%emt 0:00:00]} Nd3 {[%emt 0:00:57]} 43. Qd4 {
[%emt 0:00:00]} Nc5 {[%emt 0:01:47]} 44. Kg1 {[%emt 0:00:00]} Nf4 {[%emt 0:04:
53]} 45. Rh2 {[%emt 0:00:00]} Qxf5 {[%emt 0:00:38]} 46. Nd2 {[%emt 0:00:00]}
Nh3+ {[%emt 0:03:14]} 47. Kh1 {[%emt 0:00:00]} Rh8 {[%emt 0:00:29]} 48. Qb2 {
[%emt 0:03:32]} Nf2+ {[%emt 0:00:51]} 49. Kg1 {[%emt 0:00:08]} Rxh2 {[%emt 0:
00:19]} 50. Nf1 {[%emt 0:00:52]} Rh1+ {[%emt 0:00:30]} 51. Kg2 {[%emt 0:00:08]}
Qh3+ {[%emt 0:00:12]} 0-1

[Event "23rd ETCC Women 2021"]
[Site "Catez"]
[Date "2021.11.15"]
[Round "4.56"]
[White "Acevedo Mendez, Lisseth"]
[Black "Onur, Cigdem"]
[Result "0-1"]
[ECO "B42"]
[WhiteElo "1803"]
[BlackElo "2015"]
[Annotator "NA"]
[PlyCount "80"]
[EventDate "2021.11.08"]
[EventType "team-tourn"]
[EventCountry "SLO"]
[SourceTitle "playchess.com"]
[Source "ChessBase"]
[SourceQuality "1"]
[WhiteTeam "Iceland"]
[BlackTeam "Turkey"]
[WhiteTeamCountry "ISL"]
[BlackTeamCountry "TUR"]
[TimeControl "40/5400+30:1800+30"]

1. e4 {[%emt 0:00:02]} c5 {[%emt 0:00:06]} 2. Nf3 {[%emt 0:00:06]} e6 {[%emt 0:
00:03]} 3. d4 {[%emt 0:00:11]} cxd4 {[%emt 0:00:05]} 4. Nxd4 {[%emt 0:00:04]}
a6 {[%emt 0:00:03]} 5. Bd3 {[%emt 0:00:22]} Nf6 {[%emt 0:00:24]} 6. O-O {
[%emt 0:00:34]} Qc7 {[%emt 0:00:53]} 7. Qe2 {[%emt 0:00:35]} d6 {[%emt 0:01:16]
} 8. c4 {[%emt 0:01:00]} Nbd7 {[%emt 0:06:12]} 9. b3 {[%emt 0:08:30]} Be7 {
[%emt 0:08:54]} 10. Bb2 {[%emt 0:00:30]} O-O {[%emt 0:04:28]} 11. Nc3 {[%emt 0:
03:46]} Nc5 {[%emt 0:14:26]} 12. Bc2 {[%emt 0:04:45]} e5 {[%emt 0:12:09]} 13.
Nf5 {[%emt 0:15:35]} Ne6 {[%emt 0:02:52]} 14. Nd5 {[%emt 0:05:27]} Nxd5 {
[%emt 0:00:16]} 15. exd5 {[%emt 0:00:05]} Nf4 {[%emt 0:09:30]} 16. Qf3 {
[%emt 0:09:34]} Bf6 {[%emt 0:06:54]} 17. Ba3 {[%emt 0:05:51]} Rd8 {[%emt 0:08:
52]} 18. Rae1 {[%emt 0:01:27]} g6 {[%emt 0:05:04]} 19. Nh6+ {[%emt 0:01:27]}
Kg7 {[%emt 0:00:51]} 20. Ng4 {[%emt 0:00:04]} Bxg4 {[%emt 0:06:48]} 21. Qxg4 {
[%emt 0:00:14]} Nxd5 {[%emt 0:02:04]} 22. Bxg6 {[%emt 0:02:11]} hxg6 {[%emt 0:
00:13]} 23. cxd5 {[%emt 0:00:05]} Qa5 {[%emt 0:01:12]} 24. Qb4 {[%emt 0:01:05]}
Qxd5 {[%emt 0:00:38]} 25. Rd1 {[%emt 0:00:05]} Qb5 {[%emt 0:03:03]} 26. Rxd6 {
[%emt 0:04:47]} Rxd6 {[%emt 0:01:02]} 27. Qxd6 {[%emt 0:00:10]} Rd8 {[%emt 0:
00:05]} 28. Qb4 {[%emt 0:00:38]} Qe2 {[%emt 0:01:16]} 29. g3 {[%emt 0:09:23]}
Qxa2 {[%emt 0:00:06]} 30. Rc1 {[%emt 0:00:28]} b5 {[%emt 0:02:02]} 31. Rc6 {
[%emt 0:00:48]} a5 {[%emt 0:00:41]} 32. Qc5 {[%emt 0:01:31]} b4 {[%emt 0:01:53]
} 33. Bc1 {[%emt 0:01:09]} Qxb3 {[%emt 0:00:14]} 34. Qxa5 {[%emt 0:08:15]} Qf3
{[%emt 0:01:06]} 35. Bh6+ {[%emt 0:03:00]} Kxh6 {[%emt 0:00:10]} 36. Rc1 {
[%emt 0:00:03]} Rd1+ {[%emt 0:00:47]} 37. Rxd1 {[%emt 0:00:04]} Qxd1+ {[%emt 0:
00:04]} 38. Kg2 {[%emt 0:00:02]} b3 {[%emt 0:00:26]} 39. Qb4 {[%emt 0:00:26]}
Kg7 {[%emt 0:00:17]} 40. h4 {[%emt 0:00:59]} e4 {[%emt 0:00:09]} 0-1

[Event "23rd ETCC Women 2021"]
[Site "Catez"]
[Date "2021.11.15"]
[Round "4.57"]
[White "Novkovic, Julia"]
[Black "Hrescak, Ivana"]
[Result "0-1"]
[ECO "B51"]
[WhiteElo "2082"]
[BlackElo "2138"]
[Annotator "NA"]
[PlyCount "76"]
[EventDate "2021.11.08"]
[EventType "team-tourn"]
[EventCountry "SLO"]
[SourceTitle "playchess.com"]
[Source "ChessBase"]
[SourceQuality "1"]
[WhiteTeam "Austria"]
[BlackTeam "Slovenia"]
[WhiteTeamCountry "AUT"]
[BlackTeamCountry "SLO"]
[TimeControl "40/5400+30:1800+30"]

1. e4 {[%emt 0:00:03]} c5 {[%emt 0:00:03]} 2. Nf3 {[%emt 0:00:07]} d6 {[%emt 0:
00:03]} 3. Bb5+ {[%emt 0:00:17]} Nd7 {[%emt 0:00:06]} 4. O-O {[%emt 0:00:33]}
a6 {[%emt 0:00:52]} 5. Bd3 {[%emt 0:00:23]} g6 {[%emt 0:01:52]} 6. c3 {[%emt 0:
02:02]} Bg7 {[%emt 0:00:35]} 7. Bc2 {[%emt 0:01:19]} b6 {[%emt 0:10:00]} 8. d4
{[%emt 0:02:26]} Bb7 {[%emt 0:00:08]} 9. Re1 {[%emt 0:01:27]} Qc7 {[%emt 0:01:
22]} 10. Nbd2 {[%emt 0:04:12]} e6 {[%emt 0:08:19]} 11. dxc5 {[%emt 0:10:39]}
Qxc5 {[%emt 0:06:54]} 12. Nb3 {[%emt 0:04:15]} Qc7 {[%emt 0:00:55]} 13. Nbd4 {
[%emt 0:16:40]} Ne7 {[%emt 0:04:46]} 14. Ng5 {[%emt 0:07:18]} Bf6 {[%emt 0:23:
51]} 15. Ngxe6 {[%emt 0:12:25]} fxe6 {[%emt 0:01:27]} 16. Nxe6 {[%emt 0:00:01]}
Qc6 {[%emt 0:02:42]} 17. Bf4 {[%emt 0:08:49]} Nc5 {[%emt 0:05:24]} 18. Nd4 {
[%emt 0:01:01]} Qd7 {[%emt 0:00:43]} 19. Nf5 {[%emt 0:08:31]} gxf5 {[%emt 0:05:
26]} 20. Qh5+ {[%emt 0:00:20]} Kd8 {[%emt 0:08:57]} 21. Rad1 {[%emt 0:02:17]}
d5 {[%emt 0:02:52]} 22. Qf7 {[%emt 0:05:55]} Qe6 {[%emt 0:01:36]} 23. Qh5 {
[%emt 0:01:09]} fxe4 {[%emt 0:01:34]} 24. f3 {[%emt 0:02:52]} Ng6 {[%emt 0:03:
02]} 25. Bg3 {[%emt 0:00:47]} Be5 {[%emt 0:06:43]} 26. f4 {[%emt 0:01:25]} Nxf4
{[%emt 0:01:48]} 27. Bxf4 {[%emt 0:01:08]} Bxf4 {[%emt 0:00:05]} 28. Qh4+ {
[%emt 0:00:03]} Qe7 {[%emt 0:00:30]} 29. Qxf4 {[%emt 0:00:22]} Rf8 {[%emt 0:00:
21]} 30. Qg4 {[%emt 0:02:03]} Nd7 {[%emt 0:00:46]} 31. Bxe4 {[%emt 0:00:27]}
dxe4 {[%emt 0:00:51]} 32. Rxd7+ Qxd7 {[%emt 0:00:00]} 33. Rd1 {[%emt 0:03:50]}
Bd5 {[%emt 0:01:11]} 34. Qg5+ {[%emt 0:00:09]} Kc7 {[%emt 0:00:23]} 35. Rxd5 {
[%emt 0:00:34]} Qf7 {[%emt 0:00:38]} 36. Qg3+ {[%emt 0:01:46]} Kb7 {[%emt 0:00:
22]} 37. Rd1 {[%emt 0:00:46]} Rad8 {[%emt 0:00:22]} 38. Re1 {[%emt 0:00:16]}
Rd2 {[%emt 0:01:02]} 0-1

[Event "23rd ETCC Women 2021"]
[Site "Catez"]
[Date "2021.11.15"]
[Round "4.58"]
[White "Kolaric, Spela"]
[Black "Teuschler, Barbara"]
[Result "1/2-1/2"]
[ECO "B22"]
[WhiteElo "2178"]
[BlackElo "2115"]
[Annotator "NA"]
[PlyCount "72"]
[EventDate "2021.11.08"]
[EventType "team-tourn"]
[EventCountry "SLO"]
[SourceTitle "playchess.com"]
[Source "ChessBase"]
[SourceQuality "1"]
[WhiteTeam "Slovenia"]
[BlackTeam "Austria"]
[WhiteTeamCountry "SLO"]
[BlackTeamCountry "AUT"]
[TimeControl "40/5400+30:1800+30"]

1. e4 {[%emt 0:00:04]} c5 {[%emt 0:00:05]} 2. c3 {[%emt 0:00:20]} Nf6 {[%emt 0:
00:21]} 3. e5 {[%emt 0:00:11]} Nd5 {[%emt 0:00:03]} 4. d4 {[%emt 0:00:14]} cxd4
{[%emt 0:00:07]} 5. Nf3 {[%emt 0:00:18]} e6 {[%emt 0:00:31]} 6. cxd4 {[%emt 0:
00:12]} d6 {[%emt 0:00:14]} 7. Bc4 {[%emt 0:00:59]} Nc6 {[%emt 0:00:19]} 8. O-O
{[%emt 0:01:03]} Be7 {[%emt 0:00:08]} 9. Qe2 {[%emt 0:01:32]} O-O {[%emt 0:00:
13]} 10. Nc3 {[%emt 0:00:26]} Nxc3 {[%emt 0:00:06]} 11. bxc3 {[%emt 0:00:08]}
dxe5 {[%emt 0:00:02]} 12. dxe5 {[%emt 0:00:15]} b6 {[%emt 0:00:26]} 13. Qe4 {
[%emt 0:06:31]} Qc7 {[%emt 0:00:10]} 14. Re1 {[%emt 0:02:37]} Bb7 {[%emt 0:01:
05]} 15. Bd3 {[%emt 0:13:10]} g6 {[%emt 0:00:13]} 16. Ng5 {[%emt 0:20:07]} Nb4
{[%emt 0:23:19]} 17. Qe2 {[%emt 0:02:16]} Nxd3 {[%emt 0:00:36]} 18. Qxd3 {
[%emt 0:00:06]} Rac8 {[%emt 0:08:49]} 19. Qh3 {[%emt 0:08:03]} h5 {[%emt 0:00:
32]} 20. Bd2 {[%emt 0:03:52]} Rfd8 {[%emt 0:19:57]} 21. Qe3 {[%emt 0:11:41]}
Qc6 {[%emt 0:00:28]} 22. Nf3 {[%emt 0:00:46]} Rd7 {[%emt 0:01:32]} 23. Red1 {
[%emt 0:02:43]} Rcd8 {[%emt 0:01:10]} 24. Qe2 {[%emt 0:01:07]} Qe4 {[%emt 0:09:
36]} 25. Qxe4 {[%emt 0:02:52]} Bxe4 {[%emt 0:00:01]} 26. Nd4 {[%emt 0:00:24]}
Bc5 {[%emt 0:10:07]} 27. Be3 {[%emt 0:02:44]} Bb7 {[%emt 0:05:40]} 28. Re1 {
[%emt 0:02:50]} Bxd4 {[%emt 0:01:11]} 29. cxd4 {[%emt 0:01:48]} Rc8 {[%emt 0:
00:28]} 30. Rac1 {[%emt 0:00:47]} Rdc7 {[%emt 0:00:03]} 31. Rxc7 {[%emt 0:01:
15]} Rxc7 {[%emt 0:00:01]} 32. Rc1 {[%emt 0:00:15]} Rxc1+ {[%emt 0:00:12]} 33.
Bxc1 {[%emt 0:00:04]} Kf8 {[%emt 0:00:20]} 34. f3 {[%emt 0:01:44]} Ke8 {
[%emt 0:02:28]} 35. Kf2 {[%emt 0:00:44]} Kd7 {[%emt 0:01:35]} 36. Ke3 {[%emt 0:
00:57]} Bd5 {[%emt 0:00:52]} 1/2-1/2

[Event "23rd ETCC Women 2021"]
[Site "Catez"]
[Date "2021.11.15"]
[Round "4.59"]
[White "Froewis, Annika"]
[Black "Ruzic, Pia Marie"]
[Result "1/2-1/2"]
[ECO "C06"]
[WhiteElo "2079"]
[BlackElo "2049"]
[Annotator "NA"]
[PlyCount "94"]
[EventDate "2021.11.08"]
[EventType "team-tourn"]
[EventCountry "SLO"]
[SourceTitle "playchess.com"]
[Source "ChessBase"]
[SourceQuality "1"]
[WhiteTeam "Austria"]
[BlackTeam "Slovenia"]
[WhiteTeamCountry "AUT"]
[BlackTeamCountry "SLO"]
[TimeControl "40/5400+30:1800+30"]

1. e4 {[%emt 0:00:01]} e6 {[%emt 0:00:11]} 2. d4 {[%emt 0:00:06]} d5 {[%emt 0:
00:11]} 3. Nd2 {[%emt 0:00:05]} Nf6 {[%emt 0:02:44]} 4. e5 {[%emt 0:00:21]}
Nfd7 {[%emt 0:00:05]} 5. Bd3 {[%emt 0:00:25]} c5 {[%emt 0:00:33]} 6. c3 {
[%emt 0:00:06]} Nc6 {[%emt 0:01:15]} 7. Ne2 {[%emt 0:00:40]} f6 {[%emt 0:03:19]
} 8. exf6 {[%emt 0:01:05]} Nxf6 {[%emt 0:00:09]} 9. Nf3 {[%emt 0:02:23]} cxd4 {
[%emt 0:08:50]} 10. cxd4 {[%emt 0:00:08]} Bd6 {[%emt 0:00:10]} 11. O-O {
[%emt 0:00:57]} O-O {[%emt 0:00:18]} 12. Bg5 {[%emt 0:00:18]} Bd7 {[%emt 0:02:
25]} 13. Bh4 {[%emt 0:25:13]} Be8 {[%emt 0:09:07]} 14. Ng3 {[%emt 0:13:23]}
Bxg3 {[%emt 0:12:07]} 15. hxg3 {[%emt 0:12:14]} Bh5 {[%emt 0:00:47]} 16. Bb5 {
[%emt 0:08:56]} Qb6 {[%emt 0:08:26]} 17. Bxc6 {[%emt 0:00:13]} Qxc6 {[%emt 0:
00:19]} 18. Bxf6 {[%emt 0:03:01]} Bxf3 {[%emt 0:06:14]} 19. gxf3 {[%emt 0:00:
17]} Rxf6 {[%emt 0:00:06]} 20. f4 {[%emt 0:02:06]} Qb6 {[%emt 0:01:57]} 21. Qd3
{[%emt 0:03:03]} Rc8 {[%emt 0:04:55]} 22. b3 {[%emt 0:02:44]} Rc6 {[%emt 0:07:
40]} 23. Kg2 {[%emt 0:02:47]} Rh6 {[%emt 0:02:08]} 24. Rac1 {[%emt 0:03:34]}
Qc7 {[%emt 0:08:34]} 25. Qb5 {[%emt 0:05:42]} Rg6 {[%emt 0:05:08]} 26. Rxc6 {
[%emt 0:08:09]} bxc6 {[%emt 0:00:04]} 27. Qd3 {[%emt 0:00:19]} Rf6 {[%emt 0:06:
28]} 28. Rc1 {[%emt 0:00:39]} Qb6 {[%emt 0:02:05]} 29. Rc5 {[%emt 0:03:28]} Rf7
{[%emt 0:00:45]} 30. a3 {[%emt 0:02:03]} g6 {[%emt 0:03:47]} 31. b4 {[%emt 0:
00:05]} a6 {[%emt 0:00:27]} 32. Qe3 {[%emt 0:01:09]} Re7 {[%emt 0:01:00]} 33.
g4 {[%emt 0:00:40]} h5 {[%emt 0:02:41]} 34. gxh5 {[%emt 0:00:14]} gxh5 {
[%emt 0:00:06]} 35. Qe5 {[%emt 0:00:27]} Qc7 {[%emt 0:01:34]} 36. Kf3 {[%emt 0:
00:53]} Qd7 {[%emt 0:01:18]} 37. Qxh5 {[%emt 0:00:22]} Rh7 {[%emt 0:00:27]} 38.
Qg5+ {[%emt 0:00:40]} Rg7 {[%emt 0:00:05]} 39. Qe5 {[%emt 0:00:16]} Qe8 {
[%emt 0:00:43]} 40. Ke3 {[%emt 0:00:45]} Rg1 {[%emt 0:00:40]} 41. Qf6 {[%emt 0:
03:26]} Qh5 {[%emt 0:12:25]} 42. Qxe6+ {[%emt 0:03:51]} Kf8 {[%emt 0:00:17]}
43. Kd2 {[%emt 0:19:48]} Qd1+ {[%emt 0:07:19]} 44. Kc3 {[%emt 0:00:04]} Qa1+ {
[%emt 0:00:29]} 45. Kb3 {[%emt 0:00:50]} Qd1+ {[%emt 0:00:07]} 46. Kc3 {
[%emt 0:02:35]} Qa1+ {[%emt 0:00:07]} 47. Kb3 {[%emt 0:00:19]} Qd1+ {[%emt 0:
00:28]} 1/2-1/2

[Event "23rd ETCC Women 2021"]
[Site "Catez"]
[Date "2021.11.15"]
[Round "4.60"]
[White "Hercog, Nusa"]
[Black "Mayrhuber, Nikola"]
[Result "0-1"]
[ECO "E14"]
[WhiteElo "1983"]
[BlackElo "2091"]
[Annotator "NA"]
[PlyCount "78"]
[EventDate "2021.11.08"]
[EventType "team-tourn"]
[EventCountry "SLO"]
[SourceTitle "playchess.com"]
[Source "ChessBase"]
[SourceQuality "1"]
[WhiteTeam "Slovenia"]
[BlackTeam "Austria"]
[WhiteTeamCountry "SLO"]
[BlackTeamCountry "AUT"]
[TimeControl "40/5400+30:1800+30"]

1. d4 {[%emt 0:00:03]} e6 {[%emt 0:00:07]} 2. c4 {[%emt 0:00:06]} Nf6 {[%emt 0:
00:04]} 3. Nf3 {[%emt 0:00:09]} Bb4+ {[%emt 0:00:25]} 4. Nbd2 {[%emt 0:00:32]}
b6 {[%emt 0:00:19]} 5. a3 {[%emt 0:00:47]} Bxd2+ {[%emt 0:00:10]} 6. Qxd2 {
[%emt 0:00:11]} Bb7 {[%emt 0:00:15]} 7. e3 {[%emt 0:00:13]} a5 {[%emt 0:00:28]}
8. b3 {[%emt 0:01:53]} O-O {[%emt 0:00:21]} 9. Be2 {[%emt 0:04:01]} d6 {
[%emt 0:00:29]} 10. O-O {[%emt 0:00:54]} Nbd7 {[%emt 0:00:11]} 11. Bb2 {
[%emt 0:00:40]} Qe7 {[%emt 0:00:28]} 12. Rfd1 {[%emt 0:04:06]} Ne4 {[%emt 0:01:
19]} 13. Qc2 {[%emt 0:03:24]} f5 {[%emt 0:00:19]} 14. Bd3 {[%emt 0:09:43]} Ng5
{[%emt 0:27:57]} 15. Nxg5 {[%emt 0:13:48]} Qxg5 {[%emt 0:00:07]} 16. e4 {
[%emt 0:00:32]} Rf6 {[%emt 0:12:37]} 17. Bc1 {[%emt 0:09:31]} f4 {[%emt 0:03:
47]} 18. f3 {[%emt 0:00:50]} Rh6 {[%emt 0:07:49]} 19. Qf2 {[%emt 0:03:44]} Rf8
{[%emt 0:03:42]} 20. Kh1 {[%emt 0:09:16]} Qh5 {[%emt 0:03:33]} 21. h3 {[%emt 0:
01:51]} e5 {[%emt 0:03:42]} 22. Bb2 {[%emt 0:06:25]} Bc8 {[%emt 0:02:23]} 23.
Kg1 {[%emt 0:11:15]} Rg6 {[%emt 0:02:45]} 24. Kf1 {[%emt 0:02:05]} Rg3 {
[%emt 0:07:04]} 25. Ke2 {[%emt 0:02:49]} Qg5 {[%emt 0:01:01]} 26. Rg1 {[%emt 0:
00:25]} exd4 {[%emt 0:02:14]} 27. Bxd4 {[%emt 0:00:06]} Ne5 {[%emt 0:00:57]}
28. Bc2 {[%emt 0:03:06]} a4 {[%emt 0:07:33]} 29. Rad1 {[%emt 0:01:43]} axb3 {
[%emt 0:03:41]} 30. Bxb3 {[%emt 0:00:06]} Kh8 {[%emt 0:00:28]} 31. Bxe5 {
[%emt 0:02:48]} Qxe5 {[%emt 0:00:19]} 32. Kf1 {[%emt 0:04:51]} Qc3 {[%emt 0:03:
18]} 33. Qc2 {[%emt 0:01:26]} Rxf3+ {[%emt 0:02:59]} 34. gxf3 {[%emt 0:00:19]}
Bxh3+ {[%emt 0:00:23]} 35. Rg2 {[%emt 0:00:40]} Qxf3+ {[%emt 0:00:22]} 36. Kg1
{[%emt 0:03:08]} Bxg2 {[%emt 0:00:20]} 37. Re1 {[%emt 0:01:00]} Bh3 {[%emt 0:
01:16]} 38. Re2 {[%emt 0:00:31]} Qg3+ {[%emt 0:01:41]} 39. Kh1 {[%emt 0:00:02]}
f3 {[%emt 0:00:57]} 0-1

[Event "23rd ETCC Women 2021"]
[Site "Catez"]
[Date "2021.11.16"]
[Round "5.1"]
[White "Lagno, Kateryna"]
[Black "Brunello, Marina"]
[Result "1-0"]
[ECO "B92"]
[WhiteElo "2550"]
[BlackElo "2359"]
[Annotator "ChessBase"]
[PlyCount "101"]
[EventDate "2021.11.08"]
[EventType "team-tourn"]
[EventCountry "SLO"]
[SourceTitle "playchess.com"]
[Source "ChessBase"]
[SourceQuality "1"]
[WhiteTeam "Russia"]
[BlackTeam "Italy"]
[WhiteTeamCountry "RUS"]
[BlackTeamCountry "ITA"]
[TimeControl "40/5400+30:1800+30"]

1. e4 {[%emt 0:00:03]} c5 {[%emt 0:00:06]} 2. Nf3 {[%emt 0:00:10]} d6 {[%emt 0:
00:06]} 3. d4 {[%emt 0:00:05]} cxd4 {[%emt 0:00:07]} 4. Nxd4 {[%emt 0:00:05]}
Nf6 {[%emt 0:00:06]} 5. Nc3 {[%emt 0:00:04]} a6 {[%emt 0:00:02]} 6. Be2 {
[%emt 0:00:11]} e5 {[%emt 0:00:28]} 7. Nb3 {[%emt 0:00:09]} Be7 {[%emt 0:00:13]
} 8. O-O {[%emt 0:00:21]} O-O {[%emt 0:00:25]} 9. Qd3 {[%emt 0:00:10]} Be6 {
[%emt 0:13:24]} 10. Bd2 {[%emt 0:00:15]} Nbd7 {[%emt 0:03:00]} 11. Nd5 {
[%emt 0:00:17]} Bxd5 {[%emt 0:00:26]} 12. exd5 {[%emt 0:00:05]} a5 {[%emt 0:02:
17]} 13. a4 {[%emt 0:01:56]} Qc7 {[%emt 0:02:38]} 14. Rac1 {[%emt 0:05:28]}
Rfe8 {[%emt 0:06:17]} 15. Rfd1 {[%emt 0:04:55]} Bf8 {[%emt 0:02:58]} 16. Be1 {
[%emt 0:11:32]} Qd8 {[%emt 0:06:41]} 17. Qh3 {[%emt 0:01:44]} g6 {[%emt 0:04:
00]} 18. Bb5 {[%emt 0:00:39]} Re7 {[%emt 0:00:05]} 19. Qh4 {[%emt 0:17:03]} Bg7
{[%emt 0:03:08]} 20. Bd2 {[%emt 0:05:09]} e4 {[%emt 0:06:20]} 21. h3 {[%emt 0:
12:30]} Re5 {[%emt 0:14:13]} 22. Bf4 {[%emt 0:03:07]} Rh5 {[%emt 0:01:09]} 23.
Qg3 {[%emt 0:00:07]} Ne5 {[%emt 0:00:04]} 24. Be2 {[%emt 0:09:44]} Rf5 {
[%emt 0:08:40]} 25. Qe3 {[%emt 0:00:35]} h5 {[%emt 0:02:07]} 26. c4 {[%emt 0:
02:05]} Kh7 {[%emt 0:01:01]} 27. Rc3 {[%emt 0:02:02]} Qe7 {[%emt 0:10:32]} 28.
Nd4 {[%emt 0:00:52]} Rxf4 {[%emt 0:00:03]} 29. Qxf4 {[%emt 0:00:03]} Bh6 {
[%emt 0:00:16]} 30. Qh4 {[%emt 0:06:25]} Ned7 {[%emt 0:03:40]} 31. Nb3 {
[%emt 0:10:41]} Qe5 {[%emt 0:00:56]} 32. f3 {[%emt 0:00:59]} Bf4 {[%emt 0:01:
19]} 33. fxe4 {[%emt 0:05:01]} Nxe4 {[%emt 0:01:24]} 34. Rf3 {[%emt 0:00:35]}
Bh2+ {[%emt 0:03:05]} 35. Kh1 {[%emt 0:00:08]} f5 {[%emt 0:01:56]} 36. Rdd3 {
[%emt 0:00:11]} Ndf6 {[%emt 0:00:38]} 37. Nd4 {[%emt 0:00:28]} Re8 {[%emt 0:01:
27]} 38. Ne6 {[%emt 0:00:11]} Kh6 {[%emt 0:00:58]} 39. Rde3 {[%emt 0:01:02]} f4
{[%emt 0:01:48]} 40. Rxe4 {[%emt 0:00:37]} Nxe4 {[%emt 0:00:40]} 41. Kxh2 {
[%emt 0:30:55]} Ng3 {[%emt 0:02:16]} 42. Qxf4+ {[%emt 0:00:00]} Qxf4 {[%emt 0:
01:15]} 43. Rxf4 {[%emt 0:00:00]} Nxe2 {[%emt 0:00:05]} 44. Re4 {[%emt 0:00:00]
} Nc1 {[%emt 0:00:17]} 45. c5 {[%emt 0:00:00]} Re7 {[%emt 0:02:09]} 46. c6 {
[%emt 0:00:00]} bxc6 {[%emt 0:00:20]} 47. dxc6 {[%emt 0:00:00]} d5 {[%emt 0:03:
38]} 48. Re3 {[%emt 0:00:00]} d4 {[%emt 0:00:04]} 49. Re4 {[%emt 0:00:00]} d3 {
[%emt 0:01:34]} 50. c7 {[%emt 0:00:00]} Re8 {[%emt 0:00:05]} 51. Rd4 {[%emt 0:
00:00]} 1-0